[Event "Titled Tuesday Blitz August 23 Early 2022"]
[White "Xu, Yi"]
[Black "Bachmann, Axel"]
[WhiteFideId "8605564"]
[BlackFideId "3700488"]
[WhiteElo "2471"]
[BlackElo "2595"]
[Result "0-1"]
[Round "07"]
[TimeControl "180+1"]
[Date "2022.08.23"]
[WhiteClock "0:00:02"]
[BlackClock "0:00:10"]

1. e4 {[%clk 0:02:59]}  Nc6 {[%clk 0:02:54]} 2. Nf3 {[%clk 0:02:58]}  d6 {[%clk 0:02:53]} 3. d4 {[%clk 0:02:56]}  Nf6 {[%clk 0:02:53]} 4. Nc3 {[%clk 0:02:56]}  g6 {[%clk 0:02:52]} 5. h3 {[%clk 0:02:55]}  Bg7 {[%clk 0:02:52]} 6. Be2 {[%clk 0:02:55]}  O-O {[%clk 0:02:52]} 7. O-O {[%clk 0:02:56]}  e5 {[%clk 0:02:53]} 8. d5 {[%clk 0:02:49]}  Ne7 {[%clk 0:02:49]} 9. Be3 {[%clk 0:02:42]}  Nh5 {[%clk 0:02:36]} 10. Re1 {[%clk 0:02:37]}  h6 {[%clk 0:02:34]} 11. Nd2 {[%clk 0:02:24]}  Nf4 {[%clk 0:02:32]} 12. Bf1 {[%clk 0:02:25]}  f5 {[%clk 0:02:33]} 13. a4 {[%clk 0:02:01]}  g5 {[%clk 0:02:29]} 14. a5 {[%clk 0:01:59]}  a6 {[%clk 0:02:28]} 15. exf5 {[%clk 0:01:57]}  Nxf5 {[%clk 0:02:23]} 16. Nde4 {[%clk 0:01:51]}  Qe8 {[%clk 0:02:20]} 17. Ne2 {[%clk 0:01:31]}  Qg6 {[%clk 0:02:15]} 18. N2g3 {[%clk 0:01:31]}  Nh4 {[%clk 0:02:11]} 19. c4 {[%clk 0:01:25]}  g4 {[%clk 0:01:56]} 20. hxg4 {[%clk 0:00:58]}  Bxg4 {[%clk 0:01:57]} 21. f3 {[%clk 0:00:58]}  Nfxg2 {[%clk 0:00:57]} 22. fxg4 {[%clk 0:00:48]}  Nxe1 {[%clk 0:00:56]} 23. Bh3 {[%clk 0:00:31]}  Nef3+ {[%clk 0:00:53]} 24. Kh1 {[%clk 0:00:32]}  Ng5 {[%clk 0:00:43]} 25. Bxg5 {[%clk 0:00:26]}  hxg5 {[%clk 0:00:44]} 26. Nf5 {[%clk 0:00:27]}  Nxf5 {[%clk 0:00:42]} 27. gxf5 {[%clk 0:00:27]}  Rxf5 {[%clk 0:00:42]} 28. Bxf5 {[%clk 0:00:26]}  Qxf5 {[%clk 0:00:43]} 29. Qd3 {[%clk 0:00:23]}  Rf8 {[%clk 0:00:38]} 30. Rg1 {[%clk 0:00:19]}  Qh7+ {[%clk 0:00:38]} 31. Kg2 {[%clk 0:00:19]}  Rf4 {[%clk 0:00:38]} 32. Re1 {[%clk 0:00:14]}  Rg4+ {[%clk 0:00:35]} 33. Kf2 {[%clk 0:00:09]}  Qh2+ {[%clk 0:00:29]} 34. Ke3 {[%clk 0:00:09]}  Rg2 {[%clk 0:00:20]} 35. Nf6+ {[%clk 0:00:05]}  Kh8 {[%clk 0:00:14]} 36. Rf1 {[%clk 0:00:02]}  Rg3+ {[%clk 0:00:11]} 37. Rf3 {[%clk 0:00:02]}  Rxf3+ {[%clk 0:00:11]} 38. Kxf3 {[%clk 0:00:02]}  Qh3+ {[%clk 0:00:10]} 0-1